[Event "Early-Titled-Tuesday-Blitz-May-28-2024"]
[Site "Chess.com"]
[Date "2024.05.28"]
[Round "10"]
[White "Tol_Tol"]
[Black "aljado"]
[Result "1-0"]
[WhiteElo "2373"]
[BlackElo "2178"]
[TimeControl "180+1"]
[EndTime "9:57:58 PDT"]
[Termination "Tol_Tol won by resignation"]

1. d4 {[%clk 0:02:57.7]} 1... d5 {[%clk 0:02:58.2]} 2. c4 {[%clk 0:02:58]} 2...
c6 {[%clk 0:02:57.6]} 3. Nf3 {[%clk 0:02:57.7]} 3... Nf6 {[%clk 0:02:55.8]} 4.
Nc3 {[%clk 0:02:58]} 4... e6 {[%clk 0:02:54.8]} 5. Qd3 {[%clk 0:02:55.6]} 5...
Be7 {[%clk 0:02:53.2]} 6. a3 {[%clk 0:02:53.1]} 6... Nbd7 {[%clk 0:02:52.8]} 7.
e4 {[%clk 0:02:53.2]} 7... dxe4 {[%clk 0:02:49.6]} 8. Nxe4 {[%clk 0:02:52.5]}
8... Nxe4 {[%clk 0:02:50]} 9. Qxe4 {[%clk 0:02:52.6]} 9... Nf6 {[%clk
0:02:41.9]} 10. Qh4 {[%clk 0:02:52.1]} 10... c5 {[%clk 0:02:36.9]} 11. Bd3
{[%clk 0:02:51.4]} 11... cxd4 {[%clk 0:02:35.4]} 12. O-O {[%clk 0:02:51.5]}
12... O-O {[%clk 0:02:29.9]} 13. Bg5 {[%clk 0:02:46.5]} 13... g6 {[%clk
0:01:59.4]} 14. Rad1 {[%clk 0:02:41.2]} 14... b6 {[%clk 0:01:58.7]} 15. Be4
{[%clk 0:02:23.4]} 15... Rb8 {[%clk 0:01:54.8]} 16. Rxd4 {[%clk 0:02:22.9]}
16... Nd5 {[%clk 0:01:30]} 17. cxd5 {[%clk 0:02:19.4]} 17... Bxg5 {[%clk
0:01:29.1]} 18. Nxg5 {[%clk 0:02:16.1]} 18... h5 {[%clk 0:01:29.4]} 19. Rfd1
{[%clk 0:01:50.3]} 19... e5 {[%clk 0:01:26.4]} 20. R4d2 {[%clk 0:01:40.3]} 20...
Qf6 {[%clk 0:01:24.1]} 21. Qg3 {[%clk 0:01:27.5]} 21... Bg4 {[%clk 0:01:20.8]}
22. f3 {[%clk 0:01:25.1]} 22... Qxg5 {[%clk 0:01:18.4]} 23. fxg4 {[%clk
0:01:23.4]} 23... h4 {[%clk 0:01:16.4]} 24. Qf3 {[%clk 0:01:20.4]} 24... f5
{[%clk 0:01:12.6]} 25. gxf5 {[%clk 0:01:19.6]} 25... gxf5 {[%clk 0:01:11.2]} 26.
Bc2 {[%clk 0:01:16.6]} 26... e4 {[%clk 0:01:09.4]} 27. Qe2 {[%clk 0:01:11.2]}
27... h3 {[%clk 0:01:01.8]} 28. Kh1 {[%clk 0:00:57.6]} 28... e3 {[%clk
0:00:43.2]} 29. Rd4 {[%clk 0:00:42.9]} 29... f4 {[%clk 0:00:42.2]} 30. Rg1
{[%clk 0:00:36]} 30... Kh8 {[%clk 0:00:28.7]} 31. gxh3 {[%clk 0:00:33.3]} 31...
Qe5 {[%clk 0:00:28.3]} 32. Qd3 {[%clk 0:00:24.8]} 32... Rb7 {[%clk 0:00:27.2]}
33. Qg6 {[%clk 0:00:18.3]} 33... Qf6 {[%clk 0:00:05.7]} 34. Qh5+ {[%clk
0:00:16.2]} 1-0

[Event "Early-Titled-Tuesday-Blitz-May-28-2024"]
[Site "Chess.com"]
[Date "2024.05.28"]
[Round "10"]
[White "Semetey"]
[Black "IMRosen"]
[Result "1-0"]
[WhiteElo "2549"]
[BlackElo "2709"]
[TimeControl "180+1"]
[EndTime "9:58:01 PDT"]
[Termination "Semetey won by checkmate"]

1. Nc3 {[%clk 0:03:00.9]} 1... d5 {[%clk 0:02:57.5]} 2. e4 {[%clk 0:03:01]} 2...
d4 {[%clk 0:02:57.5]} 3. Nce2 {[%clk 0:03:00.5]} 3... e5 {[%clk 0:02:58.2]} 4.
Nf3 {[%clk 0:02:59.9]} 4... f6 {[%clk 0:02:58.4]} 5. Ng3 {[%clk 0:02:59.1]} 5...
Be6 {[%clk 0:02:59.1]} 6. c3 {[%clk 0:02:58.3]} 6... c5 {[%clk 0:02:51.6]} 7.
Bb5+ {[%clk 0:02:58]} 7... Nd7 {[%clk 0:02:51.8]} 8. cxd4 {[%clk 0:02:57.1]}
8... cxd4 {[%clk 0:02:51.5]} 9. O-O {[%clk 0:02:54.4]} 9... h5 {[%clk
0:02:48.5]} 10. Nh4 {[%clk 0:02:39]} 10... Bf7 {[%clk 0:02:29.7]} 11. d3 {[%clk
0:02:28.7]} 11... Bd6 {[%clk 0:02:22.3]} 12. Nhf5 {[%clk 0:02:23.2]} 12... Bf8
{[%clk 0:02:21.4]} 13. f4 {[%clk 0:02:21.9]} 13... g6 {[%clk 0:02:17.5]} 14.
fxe5 {[%clk 0:02:18.2]} 14... gxf5 {[%clk 0:02:12.2]} 15. Rxf5 {[%clk
0:01:54.1]} 15... a6 {[%clk 0:01:47.1]} 16. Bxd7+ {[%clk 0:01:46.6]} 16... Qxd7
{[%clk 0:01:42.6]} 17. exf6 {[%clk 0:01:47.2]} 17... O-O-O {[%clk 0:01:36.1]}
18. Bf4 {[%clk 0:01:45.3]} 18... Bd6 {[%clk 0:01:10.1]} 19. Rc1+ {[%clk
0:01:44.9]} 19... Kb8 {[%clk 0:01:09]} 20. e5 {[%clk 0:01:45.3]} 20... Be6
{[%clk 0:01:09.6]} 21. Rg5 {[%clk 0:01:20.3]} 21... Nxf6 {[%clk 0:00:41.2]} 22.
exd6 {[%clk 0:01:19.2]} 22... Nd5 {[%clk 0:00:41.3]} 23. Be5 {[%clk 0:01:08.3]}
23... Ne3 {[%clk 0:00:35.7]} 24. Qe2 {[%clk 0:00:59]} 24... Bg4 {[%clk
0:00:31.5]} 25. Qd2 {[%clk 0:00:54.9]} 25... Rhg8 {[%clk 0:00:11.9]} 26. Rxg8
{[%clk 0:00:52]} 26... Rxg8 {[%clk 0:00:12.8]} 27. Bxd4 {[%clk 0:00:52.4]} 27...
Nf5 {[%clk 0:00:02.6]} 28. Be5 {[%clk 0:00:51.1]} 28... h4 {[%clk 0:00:02.3]}
29. Nxf5 {[%clk 0:00:44.1]} 29... Qxf5 {[%clk 0:00:03.2]} 30. d4 {[%clk
0:00:36.7]} 30... Bf3 {[%clk 0:00:02.9]} 31. g3 {[%clk 0:00:35.3]} 31... hxg3
{[%clk 0:00:02.9]} 32. Bxg3 {[%clk 0:00:34.3]} 32... Bd5 {[%clk 0:00:03.3]} 33.
Qe3 {[%clk 0:00:30.8]} 33... Bc6 {[%clk 0:00:02.8]} 34. d7+ {[%clk 0:00:24.9]}
34... Ka7 {[%clk 0:00:01.9]} 35. d5+ {[%clk 0:00:24.8]} 35... Ka8 {[%clk
0:00:01.6]} 36. dxc6 {[%clk 0:00:24.3]} 36... bxc6 {[%clk 0:00:01]} 37. Qe8+
{[%clk 0:00:22.6]} 37... Kb7 {[%clk 0:00:01]} 38. Qxg8 {[%clk 0:00:20.9]} 38...
Kb6 {[%clk 0:00:01]} 39. d8=Q+ {[%clk 0:00:19.3]} 39... Kb5 {[%clk 0:00:01.7]}
40. Qc4# {[%clk 0:00:18.5]} 1-0

[Event "Early-Titled-Tuesday-Blitz-May-28-2024"]
[Site "Chess.com"]
[Date "2024.05.28"]
[Round "10"]
[White "Ramosha"]
[Black "Eloist"]
[Result "1-0"]
[WhiteElo "2557"]
[BlackElo "2433"]
[TimeControl "180+1"]
[EndTime "9:58:02 PDT"]
[Termination "Ramosha won by checkmate"]

1. d4 {[%clk 0:03:00.9]} 1... e6 {[%clk 0:03:00.2]} 2. e4 {[%clk 0:03:00.4]}
2... d5 {[%clk 0:02:59.7]} 3. exd5 {[%clk 0:03:01.3]} 3... exd5 {[%clk
0:02:59.6]} 4. Nf3 {[%clk 0:03:02.1]} 4... Bf5 {[%clk 0:02:59.4]} 5. Bd3 {[%clk
0:03:02.5]} 5... Bxd3 {[%clk 0:02:58.9]} 6. Qxd3 {[%clk 0:03:03.4]} 6... Nc6
{[%clk 0:02:54.8]} 7. c3 {[%clk 0:03:01.6]} 7... Bd6 {[%clk 0:02:54.3]} 8. Bg5
{[%clk 0:03:00.9]} 8... Nge7 {[%clk 0:02:52.9]} 9. Nbd2 {[%clk 0:03:00.7]} 9...
Qd7 {[%clk 0:02:52.5]} 10. O-O-O {[%clk 0:03:00.6]} 10... Qf5 {[%clk 0:02:49.4]}
11. Qb5 {[%clk 0:02:57.7]} 11... O-O-O {[%clk 0:02:45.3]} 12. Rhe1 {[%clk
0:02:57]} 12... f6 {[%clk 0:02:40.8]} 13. Be3 {[%clk 0:02:55.6]} 13... g5 {[%clk
0:02:35.6]} 14. h3 {[%clk 0:02:55.5]} 14... h5 {[%clk 0:02:35.1]} 15. Nb3 {[%clk
0:02:53.8]} 15... g4 {[%clk 0:02:18.3]} 16. hxg4 {[%clk 0:02:53.4]} 16... hxg4
{[%clk 0:02:14.1]} 17. Nfd2 {[%clk 0:02:53.5]} 17... Rh2 {[%clk 0:02:04.7]} 18.
g3 {[%clk 0:02:52.6]} 18... Qg6 {[%clk 0:01:52.7]} 19. Na1 {[%clk 0:02:49.6]}
19... Nf5 {[%clk 0:01:50.9]} 20. Nc2 {[%clk 0:02:49.1]} 20... Nxe3 {[%clk
0:01:25.3]} 21. Nxe3 {[%clk 0:02:50]} 21... Rxf2 {[%clk 0:01:22.8]} 22. Qxd5
{[%clk 0:02:48.6]} 22... Bxg3 {[%clk 0:01:09.4]} 23. Rg1 {[%clk 0:02:44.3]}
23... Bf4 {[%clk 0:00:57.4]} 24. Qe6+ {[%clk 0:02:38.9]} 24... Kb8 {[%clk
0:00:56.3]} 25. Rxg4 {[%clk 0:02:38.1]} 25... Qd3 {[%clk 0:00:38.1]} 26. Nec4
{[%clk 0:02:25.3]} 26... a6 {[%clk 0:00:20.3]} 27. a4 {[%clk 0:02:20.3]} 27...
Nxd4 {[%clk 0:00:19.6]} 28. cxd4 {[%clk 0:02:17.7]} 28... Rxd4 {[%clk
0:00:19.7]} 29. Rxf4 {[%clk 0:02:09.6]} 29... Rfxf4 {[%clk 0:00:17.6]} 30. Qe8+
{[%clk 0:02:09.6]} 30... Ka7 {[%clk 0:00:17.4]} 31. Qe3 {[%clk 0:02:06.7]} 31...
Qxe3 {[%clk 0:00:14.5]} 32. Nxe3 {[%clk 0:02:07.6]} 32... Rf2 {[%clk 0:00:14.5]}
33. b3 {[%clk 0:02:04.5]} 33... f5 {[%clk 0:00:14.4]} 34. Nc2 {[%clk 0:02:03.4]}
34... Rd3 {[%clk 0:00:14.2]} 35. Ne1 {[%clk 0:02:02]} 35... Re3 {[%clk
0:00:10.7]} 36. Nc2 {[%clk 0:02:00.1]} 36... Rd3 {[%clk 0:00:10.2]} 37. Ne1
{[%clk 0:01:58.5]} 37... Re3 {[%clk 0:00:10.5]} 38. a5 {[%clk 0:01:56.4]} 38...
f4 {[%clk 0:00:10]} 39. Nc2 {[%clk 0:01:56.7]} 39... Rd3 {[%clk 0:00:10]} 40.
Ne1 {[%clk 0:01:56.9]} 40... Re3 {[%clk 0:00:10.2]} 41. Nc2 {[%clk 0:01:56.2]}
41... Ree2 {[%clk 0:00:10.2]} 42. Nd4 {[%clk 0:01:55.4]} 42... Re3 {[%clk
0:00:10]} 43. Nc4 {[%clk 0:01:54.6]} 43... Rc3+ {[%clk 0:00:08.9]} 44. Kb1
{[%clk 0:01:55.1]} 44... f3 {[%clk 0:00:09.1]} 45. Rc1 {[%clk 0:01:51.8]} 45...
Rxc1+ {[%clk 0:00:07.4]} 46. Kxc1 {[%clk 0:01:52.7]} 46... Rf1+ {[%clk
0:00:07.4]} 47. Kd2 {[%clk 0:01:52.9]} 47... b5 {[%clk 0:00:06.2]} 48. Ne3
{[%clk 0:01:46.8]} 48... Ra1 {[%clk 0:00:05.3]} 49. b4 {[%clk 0:01:45.9]} 49...
f2 {[%clk 0:00:05.1]} 50. Ke2 {[%clk 0:01:46]} 50... Rb1 {[%clk 0:00:05.2]} 51.
Kxf2 {[%clk 0:01:44.5]} 51... Rxb4 {[%clk 0:00:05.2]} 52. Nc6+ {[%clk
0:01:44.6]} 52... Kb7 {[%clk 0:00:05.5]} 53. Nxb4 {[%clk 0:01:45.5]} 53... c5
{[%clk 0:00:05.8]} 54. Nd3 {[%clk 0:01:40.7]} 54... Kc6 {[%clk 0:00:06.1]} 55.
Ke2 {[%clk 0:01:40.2]} 55... b4 {[%clk 0:00:06.3]} 56. Nc4 {[%clk 0:01:40.4]}
56... Kb5 {[%clk 0:00:06.5]} 57. Ndb2 {[%clk 0:01:41.1]} 57... b3 {[%clk
0:00:05.8]} 58. Kd2 {[%clk 0:01:40.6]} 58... Kb4 {[%clk 0:00:06.1]} 59. Kd3
{[%clk 0:01:41.1]} 59... Kb5 {[%clk 0:00:06.2]} 60. Kc3 {[%clk 0:01:41.5]} 60...
Kc6 {[%clk 0:00:05.9]} 61. Kxb3 {[%clk 0:01:41.9]} 61... Kb5 {[%clk 0:00:05.7]}
62. Na4 {[%clk 0:01:42.4]} 62... Kc6 {[%clk 0:00:04.7]} 63. Nc3 {[%clk
0:01:42.2]} 63... Kc7 {[%clk 0:00:02.6]} 64. Kc2 {[%clk 0:01:43.1]} 64... Kc6
{[%clk 0:00:02.8]} 65. Kd3 {[%clk 0:01:44]} 65... Kc7 {[%clk 0:00:03.1]} 66. Ke4
{[%clk 0:01:44.9]} 66... Kc6 {[%clk 0:00:03.3]} 67. Ke5 {[%clk 0:01:45.8]} 67...
Kc7 {[%clk 0:00:03.1]} 68. Kd5 {[%clk 0:01:46.7]} 68... Kb7 {[%clk 0:00:03.4]}
69. Kxc5 {[%clk 0:01:47.6]} 69... Kc7 {[%clk 0:00:03.8]} 70. Nd2 {[%clk
0:01:47.1]} 70... Kb7 {[%clk 0:00:04.1]} 71. Kd6 {[%clk 0:01:48]} 71... Kb8
{[%clk 0:00:03.7]} 72. Kc6 {[%clk 0:01:48.4]} 72... Ka7 {[%clk 0:00:04.6]} 73.
Kc7 {[%clk 0:01:48.9]} 73... Ka8 {[%clk 0:00:04.8]} 74. Nde4 {[%clk 0:01:49.1]}
74... Ka7 {[%clk 0:00:04.5]} 75. Nd6 {[%clk 0:01:48.8]} 75... Ka8 {[%clk
0:00:04.7]} 76. Kb6 {[%clk 0:01:48.6]} 76... Kb8 {[%clk 0:00:04.8]} 77. Kxa6
{[%clk 0:01:49.3]} 77... Ka8 {[%clk 0:00:05.2]} 78. Kb6 {[%clk 0:01:50]} 78...
Kb8 {[%clk 0:00:05.6]} 79. a6 {[%clk 0:01:50.7]} 79... Ka8 {[%clk 0:00:06.1]}
80. Ncb5 {[%clk 0:01:51.4]} 80... Kb8 {[%clk 0:00:06.4]} 81. a7+ {[%clk
0:01:52]} 81... Ka8 {[%clk 0:00:06.7]} 82. Nc7# {[%clk 0:01:52.9]} 1-0

[Event "Early-Titled-Tuesday-Blitz-May-28-2024"]
[Site "Chess.com"]
[Date "2024.05.28"]
[Round "10"]
[White "SharapovEvgeny"]
[Black "mortngabriel"]
[Result "0-1"]
[WhiteElo "2604"]
[BlackElo "2495"]
[TimeControl "180+1"]
[EndTime "9:58:05 PDT"]
[Termination "mortngabriel won by resignation"]

1. e4 {[%clk 0:03:00]} 1... e5 {[%clk 0:02:59.1]} 2. Nf3 {[%clk 0:02:59.8]} 2...
Nc6 {[%clk 0:02:59]} 3. Bb5 {[%clk 0:02:59.8]} 3... a6 {[%clk 0:02:59]} 4. Ba4
{[%clk 0:02:59.5]} 4... Nf6 {[%clk 0:02:58.8]} 5. d3 {[%clk 0:02:59.8]} 5... d6
{[%clk 0:02:58.5]} 6. O-O {[%clk 0:02:59.2]} 6... g6 {[%clk 0:02:55]} 7. c3
{[%clk 0:02:58.9]} 7... Bg7 {[%clk 0:02:55]} 8. Re1 {[%clk 0:02:58.8]} 8... O-O
{[%clk 0:02:55.2]} 9. Nbd2 {[%clk 0:02:58.5]} 9... b5 {[%clk 0:02:15.8]} 10. Bb3
{[%clk 0:02:58]} 10... Qe7 {[%clk 0:02:13.4]} 11. Nf1 {[%clk 0:02:57.4]} 11...
Be6 {[%clk 0:02:13.1]} 12. Bg5 {[%clk 0:02:54.3]} 12... h6 {[%clk 0:02:11.8]}
13. Bxf6 {[%clk 0:02:54.1]} 13... Bxf6 {[%clk 0:02:11.5]} 14. Ne3 {[%clk
0:02:54]} 14... Bg7 {[%clk 0:01:59.1]} 15. Nd5 {[%clk 0:02:53.4]} 15... Qd8
{[%clk 0:01:59.3]} 16. d4 {[%clk 0:02:53.1]} 16... Ne7 {[%clk 0:01:55.9]} 17.
dxe5 {[%clk 0:02:50.3]} 17... dxe5 {[%clk 0:01:53.6]} 18. Nxe7+ {[%clk
0:02:48.4]} 18... Qxe7 {[%clk 0:01:54.5]} 19. Bxe6 {[%clk 0:02:47.8]} 19... Qxe6
{[%clk 0:01:49.7]} 20. Qb3 {[%clk 0:02:47]} 20... Qe7 {[%clk 0:01:19.6]} 21.
Rad1 {[%clk 0:02:44.6]} 21... Rfd8 {[%clk 0:01:19.3]} 22. Rxd8+ {[%clk
0:02:43.2]} 22... Rxd8 {[%clk 0:01:18.9]} 23. Rd1 {[%clk 0:02:43.4]} 23... Rd6
{[%clk 0:01:07.5]} 24. h3 {[%clk 0:02:29.4]} 24... Qd7 {[%clk 0:01:05.4]} 25.
Rxd6 {[%clk 0:02:24.8]} 25... Qxd6 {[%clk 0:01:06.3]} 26. Qd5 {[%clk 0:02:18.7]}
26... Qxd5 {[%clk 0:01:00.6]} 27. exd5 {[%clk 0:02:18.8]} 27... e4 {[%clk
0:01:01.5]} 28. Nd2 {[%clk 0:02:16.8]} 28... f5 {[%clk 0:00:58.4]} 29. Nb3
{[%clk 0:02:13.7]} 29... Bf8 {[%clk 0:00:30.5]} 30. Nd4 {[%clk 0:02:10.6]} 30...
Kf7 {[%clk 0:00:20.5]} 31. Ne6 {[%clk 0:02:05]} 31... Bd6 {[%clk 0:00:19.9]} 32.
Kf1 {[%clk 0:02:03.4]} 32... Kf6 {[%clk 0:00:19.2]} 33. b3 {[%clk 0:01:50]}
33... c6 {[%clk 0:00:18.9]} 34. c4 {[%clk 0:01:42.5]} 34... bxc4 {[%clk
0:00:18.4]} 35. bxc4 {[%clk 0:01:42.3]} 35... cxd5 {[%clk 0:00:18.8]} 36. cxd5
{[%clk 0:01:42.6]} 36... Ke5 {[%clk 0:00:19.2]} 37. Ke2 {[%clk 0:01:31.9]} 37...
Kxd5 {[%clk 0:00:19.2]} 38. Nd8 {[%clk 0:01:31.3]} 38... Be7 {[%clk 0:00:13.7]}
39. Nf7 {[%clk 0:01:29.6]} 39... h5 {[%clk 0:00:12.4]} 40. Nh8 {[%clk
0:01:21.3]} 40... g5 {[%clk 0:00:08.5]} 41. Ng6 {[%clk 0:01:20.9]} 41... Bf6
{[%clk 0:00:08.6]} 42. h4 {[%clk 0:01:18.1]} 42... gxh4 {[%clk 0:00:07.7]} 43.
Nf4+ {[%clk 0:01:17.6]} 43... Kc4 {[%clk 0:00:07.9]} 44. Nxh5 {[%clk 0:01:17.2]}
44... Be5 {[%clk 0:00:05.8]} 45. Kd2 {[%clk 0:01:10.1]} 45... a5 {[%clk
0:00:04]} 46. Kc2 {[%clk 0:01:09.2]} 46... a4 {[%clk 0:00:04.5]} 47. Kd2 {[%clk
0:01:08.8]} 47... Kb4 {[%clk 0:00:05]} 48. Kc2 {[%clk 0:01:08.9]} 48... Ka3
{[%clk 0:00:05.5]} 49. Kb1 {[%clk 0:01:09.1]} 49... f4 {[%clk 0:00:06]} 50. Kc2
{[%clk 0:00:55.4]} 50... Kxa2 {[%clk 0:00:06.5]} 51. f3 {[%clk 0:00:52.9]} 51...
exf3 {[%clk 0:00:05.5]} 52. gxf3 {[%clk 0:00:53.1]} 52... h3 {[%clk 0:00:05.9]}
0-1

[Event "Early-Titled-Tuesday-Blitz-May-28-2024"]
[Site "Chess.com"]
[Date "2024.05.28"]
[Round "10"]
[White "jens1102"]
[Black "mbojan"]
[Result "1-0"]
[WhiteElo "2751"]
[BlackElo "2901"]
[TimeControl "180+1"]
[EndTime "9:58:06 PDT"]
[Termination "jens1102 won on time"]

1. d4 {[%clk 0:03:00.9]} 1... a6 {[%clk 0:02:59.3]} 2. e4 {[%clk 0:03:00]} 2...
e6 {[%clk 0:02:59.6]} 3. Nf3 {[%clk 0:03:00]} 3... d5 {[%clk 0:02:59.6]} 4. Nc3
{[%clk 0:02:56.8]} 4... Bb4 {[%clk 0:02:58.7]} 5. e5 {[%clk 0:02:56.8]} 5... Bd7
{[%clk 0:02:58.6]} 6. Bd3 {[%clk 0:02:49.4]} 6... Bb5 {[%clk 0:02:58.1]} 7. O-O
{[%clk 0:02:49.9]} 7... Bxd3 {[%clk 0:02:50.9]} 8. Qxd3 {[%clk 0:02:50.8]} 8...
Bxc3 {[%clk 0:02:36]} 9. bxc3 {[%clk 0:02:48.2]} 9... Nd7 {[%clk 0:02:36.1]} 10.
c4 {[%clk 0:02:42]} 10... dxc4 {[%clk 0:02:26]} 11. Qxc4 {[%clk 0:02:41.2]}
11... Nb6 {[%clk 0:02:25.5]} 12. Qd3 {[%clk 0:02:41.6]} 12... Ne7 {[%clk
0:02:24.7]} 13. c4 {[%clk 0:02:39.9]} 13... c5 {[%clk 0:02:04]} 14. Ba3 {[%clk
0:02:33.9]} 14... cxd4 {[%clk 0:01:56.6]} 15. Bd6 {[%clk 0:02:34.5]} 15... Nf5
{[%clk 0:01:33.7]} 16. c5 {[%clk 0:02:27.3]} 16... Nd5 {[%clk 0:01:33.3]} 17.
Nxd4 {[%clk 0:02:25.7]} 17... Nxd6 {[%clk 0:01:32.2]} 18. cxd6 {[%clk
0:02:17.2]} 18... O-O {[%clk 0:01:32.3]} 19. Rac1 {[%clk 0:02:15]} 19... Rc8
{[%clk 0:01:04.3]} 20. Rxc8 {[%clk 0:02:03.2]} 20... Qxc8 {[%clk 0:01:05.2]} 21.
Nf5 {[%clk 0:01:57.5]} 21... Qd8 {[%clk 0:00:53.8]} 22. Ne3 {[%clk 0:01:50.9]}
22... Nxe3 {[%clk 0:00:18.4]} 23. Qxe3 {[%clk 0:01:51.8]} 23... Qa5 {[%clk
0:00:18.8]} 24. Rd1 {[%clk 0:01:40.8]} 24... h6 {[%clk 0:00:13.1]} 25. Qd4
{[%clk 0:01:25.3]} 25... Rd8 {[%clk 0:00:12.7]} 26. a4 {[%clk 0:01:22.8]} 26...
Rd7 {[%clk 0:00:07.9]} 27. Rc1 {[%clk 0:01:18.2]} 27... Rd8 {[%clk 0:00:03.7]}
28. g3 {[%clk 0:01:16.3]} 28... b5 {[%clk 0:00:03.6]} 29. axb5 {[%clk
0:01:12.2]} 29... Qxb5 {[%clk 0:00:04.5]} 30. Rc7 {[%clk 0:01:08.6]} 30... a5
{[%clk 0:00:03.8]} 31. Ra7 {[%clk 0:00:52.6]} 31... g6 {[%clk 0:00:02.8]} 32. h4
{[%clk 0:00:51.4]} 32... h5 {[%clk 0:00:03]} 33. Qf4 {[%clk 0:00:45.6]} 33...
Rf8 {[%clk 0:00:02.9]} 34. Re7 {[%clk 0:00:37.9]} 34... Qb1+ {[%clk 0:00:03.1]}
35. Kg2 {[%clk 0:00:37.4]} 35... Qb5 {[%clk 0:00:03.4]} 36. d7 {[%clk 0:00:32]}
36... Qd5+ {[%clk 0:00:04.1]} 37. Kh2 {[%clk 0:00:31.4]} 37... Qd1 {[%clk
0:00:03.9]} 38. Qf6 {[%clk 0:00:27]} 38... a4 {[%clk 0:00:02]} 39. Rxf7 {[%clk
0:00:25.7]} 39... Rxf7 {[%clk 0:00:02.3]} 40. d8=Q+ {[%clk 0:00:25.8]} 40...
Qxd8 {[%clk 0:00:02.9]} 41. Qxd8+ {[%clk 0:00:26]} 41... Kg7 {[%clk 0:00:03.4]}
42. Qd4 {[%clk 0:00:25.9]} 42... a3 {[%clk 0:00:02.7]} 43. Kg2 {[%clk
0:00:23.8]} 1-0

[Event "Early-Titled-Tuesday-Blitz-May-28-2024"]
[Site "Chess.com"]
[Date "2024.05.28"]
[Round "10"]
[White "Lennis93"]
[Black "maximnovik"]
[Result "1-0"]
[WhiteElo "2781"]
[BlackElo "2552"]
[TimeControl "180+1"]
[EndTime "9:58:09 PDT"]
[Termination "Lennis93 won by resignation"]

1. d4 {[%clk 0:03:00.9]} 1... Nf6 {[%clk 0:02:59.6]} 2. Nf3 {[%clk 0:02:57.7]}
2... g6 {[%clk 0:02:59.5]} 3. c3 {[%clk 0:02:58.6]} 3... Bg7 {[%clk 0:02:59.5]}
4. g3 {[%clk 0:02:58.9]} 4... d5 {[%clk 0:02:59.5]} 5. Bg2 {[%clk 0:02:59.3]}
5... O-O {[%clk 0:03:00.2]} 6. O-O {[%clk 0:02:59.9]} 6... c6 {[%clk 0:02:58.8]}
7. Nbd2 {[%clk 0:03:00.1]} 7... Bf5 {[%clk 0:02:58.7]} 8. Nh4 {[%clk 0:03:00]}
8... Be6 {[%clk 0:02:58.8]} 9. e4 {[%clk 0:03:00]} 9... dxe4 {[%clk 0:02:59]}
10. Nxe4 {[%clk 0:03:00.9]} 10... Nxe4 {[%clk 0:02:59.3]} 11. Bxe4 {[%clk
0:03:01.5]} 11... Nd7 {[%clk 0:02:59.8]} 12. Bg2 {[%clk 0:03:01.4]} 12... Nf6
{[%clk 0:02:59.8]} 13. a4 {[%clk 0:02:59.6]} 13... Bd5 {[%clk 0:02:59.6]} 14.
Nf3 {[%clk 0:02:58.5]} 14... a5 {[%clk 0:02:59.5]} 15. Re1 {[%clk 0:02:57.1]}
15... e6 {[%clk 0:02:58]} 16. b3 {[%clk 0:02:57.1]} 16... Qb6 {[%clk 0:02:57.3]}
17. Rb1 {[%clk 0:02:39]} 17... Rad8 {[%clk 0:02:55]} 18. Ba3 {[%clk 0:02:38.7]}
18... Rfe8 {[%clk 0:02:54.8]} 19. Qc2 {[%clk 0:02:34.8]} 19... Bxf3 {[%clk
0:02:38.5]} 20. Bxf3 {[%clk 0:02:33.8]} 20... Nd5 {[%clk 0:02:39.1]} 21. Re2
{[%clk 0:02:25.9]} 21... Bf8 {[%clk 0:02:38.4]} 22. Bb2 {[%clk 0:02:22.5]} 22...
c5 {[%clk 0:02:35.1]} 23. dxc5 {[%clk 0:02:20]} 23... Bxc5 {[%clk 0:02:28.1]}
24. Rd1 {[%clk 0:02:14.6]} 24... Ne7 {[%clk 0:02:15.6]} 25. Red2 {[%clk
0:02:07.8]} 25... Nf5 {[%clk 0:02:15.1]} 26. h4 {[%clk 0:01:54.9]} 26... Nxg3
{[%clk 0:01:58.1]} 27. b4 {[%clk 0:01:52.1]} 27... Rxd2 {[%clk 0:01:42.4]} 28.
Qxd2 {[%clk 0:01:25.3]} 28... Be7 {[%clk 0:01:34]} 29. bxa5 {[%clk 0:01:04.3]}
29... Qc5 {[%clk 0:01:31.7]} 30. Bxb7 {[%clk 0:00:29.7]} 30... Nf5 {[%clk
0:01:30.9]} 31. a6 {[%clk 0:00:26.1]} 31... Bxh4 {[%clk 0:01:30]} 32. Qe2 {[%clk
0:00:18.8]} 32... Bf6 {[%clk 0:01:25.7]} 33. Qb5 {[%clk 0:00:16.6]} 33... Qe7
{[%clk 0:01:09]} 34. a7 {[%clk 0:00:09.4]} 34... Kg7 {[%clk 0:01:09.1]} 35. a8=Q
{[%clk 0:00:09.2]} 35... Rxa8 {[%clk 0:01:09.1]} 36. Bxa8 {[%clk 0:00:10.1]}
36... Qc7 {[%clk 0:01:05]} 37. Bc1 {[%clk 0:00:09.1]} 37... Qxc3 {[%clk
0:01:02.9]} 38. Bg2 {[%clk 0:00:09.2]} 38... Qc2 {[%clk 0:01:02.3]} 39. Re1
{[%clk 0:00:08.9]} 39... Bc3 {[%clk 0:01:00.6]} 40. Rf1 {[%clk 0:00:08.6]} 40...
Bd4 {[%clk 0:01:00.4]} 41. Bf4 {[%clk 0:00:07.4]} 41... h6 {[%clk 0:00:54.6]}
42. Be5+ {[%clk 0:00:07.1]} 42... Bxe5 {[%clk 0:00:54.9]} 43. Qxe5+ {[%clk
0:00:08]} 43... Kh7 {[%clk 0:00:55.4]} 44. a5 {[%clk 0:00:08.2]} 44... Qa2
{[%clk 0:00:52.7]} 45. Qc7 {[%clk 0:00:07.3]} 45... Kg7 {[%clk 0:00:52]} 46. Re1
{[%clk 0:00:06.8]} 46... g5 {[%clk 0:00:48.1]} 47. Qc3+ {[%clk 0:00:06.9]} 47...
Kg8 {[%clk 0:00:44.2]} 48. Ra1 {[%clk 0:00:07.5]} 48... Qe2 {[%clk 0:00:42.9]}
49. a6 {[%clk 0:00:08]} 49... Nh4 {[%clk 0:00:42.6]} 50. a7 {[%clk 0:00:08.2]}
50... Qg4 {[%clk 0:00:40.8]} 51. a8=Q+ {[%clk 0:00:08.5]} 51... Kh7 {[%clk
0:00:40.8]} 52. Qe4+ {[%clk 0:00:09.1]} 52... Qxe4 {[%clk 0:00:40.5]} 53. Bxe4+
{[%clk 0:00:10]} 1-0